[Event "Krakow Championship-B 2022"]
[Site "Krakow"]
[Date "2022.06.27"]
[Round "4.12"]
[White "Lazniewska, Zofia"]
[Black "Szopa, Emilia"]
[Result "0-1"]
[ECO "B17"]
[WhiteElo "1703"]
[BlackElo "1839"]
[Annotator "NA RC"]
[PlyCount "120"]
[EventDate "2022.06.25"]
[EventType "swiss"]
[EventCountry "POL"]
[SourceTitle "playchess.com"]
[Source "ChessBase"]
[SourceQuality "1"]
[TimeControl "40/5400+30:1800+30"]

1. e4 {[%emt 0:00:02]} c6 {[%emt 0:00:24]} 2. d4 {[%emt 0:00:07]} d5 {[%emt 0:00:06]} 3. Nc3 {[%emt 0:00:05]} dxe4 {[%emt 0:00:30]} 4. Nxe4 {[%emt 0:00:08]} Nd7 {[%emt 0:00:12]} 5. Nf3 {[%emt 0:00:08]} Ngf6 {[%emt 0:00:09]} 6. Ng3 {[%emt 0:00:05]} Qc7 {[%emt 0:03:23]} 7. Bd3 {[%emt 0:01:39]} e6 {[%emt 0:01:18]} 8. O-O {[%emt 0:00:47]} Bd6 {[%emt 0:01:12]} 9. Re1 {[%emt 0:10:10]} O-O {[%emt 0:02:01]} 10. Ne4 {[%emt 0:10:50]} Nxe4 {[%emt 0:04:53]} 11. Bxe4 {[%emt 0:01:54]} h6 {[%emt 0:02:08]} 12. c3 {[%emt 0:09:01]} b6 {[%emt 0:05:31]} 13. h3 {[%emt 0:00:48]} Bb7 {[%emt 0:01:48]} 14. Bc2 {[%emt 0:03:26]} c5 {[%emt 0:06:32]} 15. Qd3 {[%emt 0:08:19]} Nf6 {[%emt 0:01:48]} 16. Ne5 {[%emt 0:11:54]} cxd4 {[%emt 0:06:48]} 17. Ng4 {[%emt 0:09:20]} Ne4 {[%emt 0:04:06]} 18. Rxe4 {[%emt 0:01:35]} Bxe4 {[%emt 0:33:21]} 19. Qxe4 {[%emt 0:00:12]} f5 {[%emt 0:00:11]} 20. Qxe6+ {[%emt 0:06:00]} Kh8 {[%emt 0:00:18]} 21. Qg6 {[%emt 0:03:32]} Rae8 {[%emt 0:04:53]} 22. Bd2 {[%emt 0:03:09]} Qd7 {[%emt 0:06:08]} 23. Nh2 {[%emt 0:07:17]} Bxh2+ {[%emt 0:01:30]} 24. Kxh2 {[%emt 0:00:07]} Re2 {[%emt 0:00:21]} 25. Rd1 {[%emt 0:01:21]} dxc3 {[%emt 0:04:07]} 26. bxc3 {[%emt 0:01:00]} Rf6 {[%emt 0:01:10]} 27. Qh5 {[%emt 0:00:18]} Qd6+ {[%emt 0:02:21]} 28. Kh1 {[%emt 0:01:00]} Rxd2 {[%emt 0:00:06]} 29. Rxd2 {[%emt 0:00:39]} Qxd2 {[%emt 0:00:09]} 30. Bb3 {[%emt 0:00:12]} Qe1+ {[%emt 0:01:50]} 31. Kh2 {[%emt 0:00:09]} Kh7 {[%emt 0:00:47]} 32. Qf3 {[%emt 0:02:34]} Qe5+ {[%emt 0:02:04]} 33. Kg1 {[%emt 0:00:09]} Rf8 {[%emt 0:01:25]} 34. Bc2 {[%emt 0:00:59]} Rf7 {[%emt 0:00:30]} 35. Bb3 {[%emt 0:00:29]} Re7 {[%emt 0:00:23]} 36. Bc2 {[%emt 0:00:51]} Qe1+ {[%emt 0:00:11]} 37. Kh2 {[%emt 0:00:05]} Qe5+ {[%emt 0:00:04]} 38. Kg1 {[%emt 0:00:06]} g6 {[%emt 0:00:16]} 39. Bb3 {[%emt 0:00:09]} Qd6 {[%emt 0:01:08]} 40. g3 {[%emt 0:00:24]} Qe5 {[%emt 0:00:24]} 41. Kh2 {[%emt 0:32:49]} Qe4 {[%emt 0:31:45]} 42. Qd1 {[%emt 0:00:23]} Qe1 {[%emt 0:00:00]} 43. Qd4 {[%emt 0:00:00]} Qe5 {[%emt 0:00:00]} 44. Qd2 {[%emt 0:00:00]} a5 {[%emt 0:00:00]} 45. Qd8 {[%emt 0:00:00]} Rg7 {[%emt 0:00:00]} 46. Qxb6 {[%emt 0:00:00]} Qxc3 {[%emt 0:00:00]} 47. Qd8 {[%emt 0:00:00]} Qe1 {[%emt 0:00:00]} 48. Kg2 {[%emt 0:00:00]} Qe4+ {[%emt 0:00:00]} 49. Kh2 {[%emt 0:00:00]} f4 {[%emt 0:00:00]} 50. Qxa5 {[%emt 0:00:00]} fxg3+ {[%emt 0:00:00]} 51. Kxg3 {[%emt 0:00:00]} Rd7 {[%emt 0:00:00]} 52. Qa6 {[%emt 0:00:00]} Rd3+ {[%emt 0:00:00]} 53. Kh2 {[%emt 0:00:00]} Qf5 {[%emt 0:00:10]} 54. Qb7+ {[%emt 0:00:00]} Rd7 {[%emt 0:01:46]} 55. Qb4 {[%emt 0:00:00]} Qxf2+ {[%emt 0:00:21]} 56. Kh1 {[%emt 0:00:00]} Qf3+ {[%emt 0:00:34]} 57. Kh2 {[%emt 0:00:00]} Qe2+ {[%emt 0:00:22]} 58. Kg1 {[%emt 0:00:17]} Qe3+ {[%emt 0:00:16]} 59. Kg2 {[%emt 0:01:31]} Rd2+ {[%emt 0:00:10]} 60. Kf1 {[%emt 0:00:10]} Qf2# 0-1

[Event "Krakow Championship-B 2022"]
[Site "Krakow"]
[Date "2022.06.28"]
[Round "5.1"]
[White "Skomial, Mateusz"]
[Black "Owoc, Jakub"]
[Result "1/2-1/2"]
[ECO "C50"]
[WhiteElo "2063"]
[BlackElo "1741"]
[Annotator "NA RC"]
[PlyCount "69"]
[EventDate "2022.06.25"]
[EventType "swiss"]
[EventCountry "POL"]
[SourceTitle "playchess.com"]
[Source "ChessBase"]
[SourceQuality "1"]
[TimeControl "40/5400+30:1800+30"]

1. e4 {[%emt 0:00:03]} e5 {[%emt 0:00:05]} 2. Nf3 {[%emt 0:00:21]} Nf6 {[%emt 0:00:05]} 3. Nc3 {[%emt 0:04:54]} Nc6 {[%emt 0:00:05]} 4. Bc4 {[%emt 0:00:49]} Bc5 {[%emt 0:01:40]} 5. d3 {[%emt 0:01:23]} d6 6. h3 {[%emt 0:00:37]} h6 {[%emt 0:00:43]} 7. Na4 {[%emt 0:02:39]} Bb6 {[%emt 0:03:02]} 8. c3 {[%emt 0:02:06]} O-O {[%emt 0:04:04]} 9. O-O {[%emt 0:02:42]} d5 {[%emt 0:20:57]} 10. Nxb6 {[%emt 0:06:50]} axb6 {[%emt 0:00:05]} 11. exd5 {[%emt 0:00:32]} Nxd5 {[%emt 0:00:08]} 12. Re1 {[%emt 0:01:25]} Re8 {[%emt 0:00:04]} 13. d4 {[%emt 0:06:10]} e4 {[%emt 0:00:43]} 14. Ne5 {[%emt 0:05:22]} Bf5 {[%emt 0:08:53]} 15. Ng4 {[%emt 0:06:59]} Nf6 {[%emt 0:04:10]} 16. Bf4 {[%emt 0:04:07]} Na5 {[%emt 0:01:05]} 17. Bb5 {[%emt 0:01:24]} c6 {[%emt 0:01:09]} 18. Bf1 {[%emt 0:00:31]} c5 {[%emt 0:01:29]} 19. dxc5 {[%emt 0:14:30]} Bxg4 {[%emt 0:03:42]} 20. Qxd8 {[%emt 0:00:31]} Rexd8 {[%emt 0:00:09]} 21. hxg4 {[%emt 0:00:07]} bxc5 {[%emt 0:00:04]} 22. g5 {[%emt 0:03:09]} Nd5 {[%emt 0:02:56]} 23. Rxe4 {[%emt 0:00:18]} Nxf4 {[%emt 0:00:12]} 24. Rxf4 {[%emt 0:00:01]} hxg5 {[%emt 0:00:11]} 25. Rf5 {[%emt 0:00:33]} Rd2 {[%emt 0:00:57]} 26. b4 {[%emt 0:04:02]} cxb4 {[%emt 0:00:33]} 27. cxb4 {[%emt 0:00:07]} Nb3 {[%emt 0:02:13]} 28. Re1 {[%emt 0:01:07]} Nd4 {[%emt 0:00:29]} 29. Rxg5 {[%emt 0:03:45]} Raxa2 {[%emt 0:06:31]} 30. Bc4 {[%emt 0:03:51]} Ne6 {[%emt 0:07:31]} 31. Bxe6 {[%emt 0:09:33]} fxe6 {[%emt 0:00:05]} 32. Rxe6 {[%emt 0:00:20]} Rd1+ {[%emt 0:00:08]} 33. Kh2 {[%emt 0:00:12]} Rxf2 {[%emt 0:00:02]} 34. Re8+ {[%emt 0:01:15]} Rf8 {[%emt 0:00:06]} 35. Rxf8+ {[%emt 0:02:28]} 1/2-1/2

[Event "Krakow Championship-B 2022"]
[Site "Krakow"]
[Date "2022.06.28"]
[Round "5.2"]
[White "Szczurek, Krzysztof"]
[Black "Khandhar, Kaushal"]
[Result "1-0"]
[ECO "A06"]
[WhiteElo "2151"]
[BlackElo "1936"]
[Annotator "RC"]
[PlyCount "113"]
[EventDate "2022.06.25"]
[EventType "swiss"]
[EventCountry "POL"]
[SourceTitle "playchess.com"]
[Source "ChessBase"]
[SourceQuality "1"]
[TimeControl "40/5400+30:1800+30"]

1. Nf3 {[%emt 0:00:02]} d5 {[%emt 0:03:53]} 2. g3 {[%emt 0:00:10]} g6 {[%emt 0:00:08]} 3. Bg2 {[%emt 0:00:06]} Bg7 {[%emt 0:00:05]} 4. O-O {[%emt 0:00:12]} e5 {[%emt 0:00:20]} 5. d3 {[%emt 0:00:43]} Ne7 {[%emt 0:00:11]} 6. e4 {[%emt 0:00:55]} O-O {[%emt 0:00:25]} 7. Nc3 {[%emt 0:01:23]} d4 {[%emt 0:06:49]} 8. Ne2 {[%emt 0:01:04]} c5 {[%emt 0:00:06]} 9. Nd2 {[%emt 0:01:45]} Nbc6 {[%emt 0:02:39]} 10. f4 {[%emt 0:00:36]} f6 {[%emt 0:01:07]} 11. Nf3 {[%emt 0:01:23]} h6 {[%emt 0:02:39]} 12. h3 {[%emt 0:12:42]} Be6 {[%emt 0:02:58]} 13. g4 {[%emt 0:01:20]} exf4 {[%emt 0:06:56]} 14. Bxf4 {[%emt 0:03:02]} Qd7 {[%emt 0:02:50]} 15. Kh2 {[%emt 0:02:09]} f5 {[%emt 0:16:01]} 16. exf5 {[%emt 0:02:01]} gxf5 {[%emt 0:01:04]} 17. g5 {[%emt 0:00:08]} Nd5 {[%emt 0:11:55]} 18. gxh6 {[%emt 0:01:28]} Bf6 {[%emt 0:00:35]} 19. Qd2 {[%emt 0:03:19]} Bf7 {[%emt 0:07:23]} 20. Ng3 {[%emt 0:05:40]} Rae8 {[%emt 0:06:35]} 21. Rg1 {[%emt 0:09:34]} Re3 {[%emt 0:07:01]} 22. Bxe3 {[%emt 0:11:03]} dxe3 {[%emt 0:00:08]} 23. Qe2 {[%emt 0:03:01]} Re8 {[%emt 0:02:07]} 24. Rae1 {[%emt 0:05:41]} Bd8 {[%emt 0:02:33]} 25. Kh1 {[%emt 0:01:31]} Kh8 {[%emt 0:02:04]} 26. c4 {[%emt 0:17:48]} Nf4 {[%emt 0:02:47]} 27. Qc2 {[%emt 0:00:05]} Bf6 {[%emt 0:01:32]} 28. a3 {[%emt 0:03:38]} Bh5 {[%emt 0:03:37]} 29. Nxh5 {[%emt 0:04:24]} Nxh5 {[%emt 0:00:07]} 30. Bf1 {[%emt 0:00:03]} f4 {[%emt 0:02:49]} 31. Rg6 {[%emt 0:03:35]} Qf5 {[%emt 0:03:44]} 32. Rg4 {[%emt 0:02:08]} Ng3+ {[%emt 0:02:17]} 33. Kh2 {[%emt 0:00:04]} Nd4 {[%emt 0:00:32]} 34. Qg2 {[%emt 0:00:39]} e2 {[%emt 0:00:42]} 35. Bxe2 {[%emt 0:00:59]} Rxe2 {[%emt 0:00:13]} 36. Rxe2 {[%emt 0:00:09]} Ndxe2 {[%emt 0:00:11]} 37. Ne1 {[%emt 0:00:29]} Bd4 {[%emt 0:01:04]} 38. Nf3 {[%emt 0:00:04]} Bf6 {[%emt 0:00:31]} 39. Ng1 {[%emt 0:02:57]} Nxg1 {[%emt 0:00:24]} 40. Qxb7 {[%emt 0:00:37]} Qxd3 {[%emt 0:00:43]} 41. Qb8+ {[%emt 0:30:45]} Qd8 {[%emt 0:02:04]} 42. Qxd8+ {[%emt 0:00:00]} Bxd8 {[%emt 0:00:05]} 43. Rxf4 {[%emt 0:00:00]} Bg5 {[%emt 0:02:21]} 44. Rf8+ {[%emt 0:00:00]} Kh7 {[%emt 0:00:12]} 45. Kxg3 {[%emt 0:00:00]} Ne2+ {[%emt 0:00:35]} 46. Kg4 {[%emt 0:00:00]} Bxh6 {[%emt 0:00:39]} 47. Rf7+ {[%emt 0:00:00]} Kg6 {[%emt 0:00:14]} 48. Rxa7 {[%emt 0:00:00]} Nc1 {[%emt 0:01:09]} 49. Rd7 {[%emt 0:00:00]} Nb3 {[%emt 0:02:37]} 50. a4 {[%emt 0:00:00]} Bf8 {[%emt 0:10:39]} 51. Rb7 {[%emt 0:00:00]} Na5 {[%emt 0:05:57]} 52. Rb6+ {[%emt 0:00:00]} Kf7 {[%emt 0:00:04]} 53. b3 {[%emt 0:00:00]} Ke8 {[%emt 0:00:11]} 54. Rb5 {[%emt 0:00:00]} Nc6 {[%emt 0:00:09]} 55. a5 {[%emt 0:00:00]} Kd7 {[%emt 0:00:23]} 56. a6 {[%emt 0:00:00]} Kc8 {[%emt 0:00:49]} 57. h4 {[%emt 0:00:00]} 1-0

[Event "Krakow Championship-B 2022"]
[Site "Krakow"]
[Date "2022.06.28"]
[Round "5.3"]
[White "Cichon, Jakub"]
[Black "Stemmler, Fabian"]
[Result "0-1"]
[ECO "C07"]
[WhiteElo "1884"]
[BlackElo "2054"]
[Annotator "NA RC"]
[PlyCount "94"]
[EventDate "2022.06.25"]
[EventType "swiss"]
[EventCountry "POL"]
[SourceTitle "playchess.com"]
[Source "ChessBase"]
[SourceQuality "1"]
[TimeControl "40/5400+30:1800+30"]

1. e4 {[%emt 0:00:36]} e6 {[%emt 0:00:05]} 2. d4 {[%emt 0:00:14]} d5 {[%emt 0:00:06]} 3. Nd2 {[%emt 0:00:04]} c5 {[%emt 0:00:06]} 4. exd5 {[%emt 0:00:46]} Qxd5 {[%emt 0:00:09]} 5. Ngf3 {[%emt 0:00:53]} cxd4 {[%emt 0:00:25]} 6. Bc4 {[%emt 0:00:49]} Qd6 {[%emt 0:00:08]} 7. O-O {[%emt 0:00:34]} Nf6 {[%emt 0:00:06]} 8. Nb3 {[%emt 0:02:14]} Nc6 {[%emt 0:00:21]} 9. Nbxd4 {[%emt 0:01:39]} Nxd4 {[%emt 0:00:20]} 10. Nxd4 {[%emt 0:01:22]} Be7 {[%emt 0:00:13]} 11. Bb3 {[%emt 0:08:51]} O-O {[%emt 0:04:26]} 12. c3 {[%emt 0:11:55]} a5 {[%emt 0:21:44]} 13. Bg5 {[%emt 0:03:48]} Bd7 {[%emt 0:08:53]} 14. Re1 {[%emt 0:02:59]} a4 {[%emt 0:06:07]} 15. Bc2 {[%emt 0:01:09]} a3 {[%emt 0:05:06]} 16. Qd3 {[%emt 0:20:17]} g6 {[%emt 0:06:25]} 17. b3 {[%emt 0:06:04]} Nd5 {[%emt 0:09:21]} 18. Nf3 {[%emt 0:08:15]} Bxg5 {[%emt 0:03:54]} 19. Nxg5 {[%emt 0:00:13]} Qf4 {[%emt 0:01:31]} 20. Ne4 {[%emt 0:03:13]} Bc6 {[%emt 0:06:29]} 21. g3 {[%emt 0:04:57]} Qf5 {[%emt 0:02:36]} 22. Qd2 {[%emt 0:07:22]} Nf6 {[%emt 0:03:30]} 23. Nxf6+ {[%emt 0:05:47]} Qxf6 {[%emt 0:00:02]} 24. Be4 {[%emt 0:00:16]} Rfd8 {[%emt 0:01:32]} 25. Qc2 {[%emt 0:00:09]} Bxe4 {[%emt 0:01:03]} 26. Rxe4 {[%emt 0:00:28]} Rd7 {[%emt 0:02:20]} 27. Rae1 {[%emt 0:03:04]} Rad8 {[%emt 0:01:44]} 28. Rf4 {[%emt 0:01:07]} Qg5 {[%emt 0:01:51]} 29. Qe4 {[%emt 0:02:57]} Qa5 {[%emt 0:02:55]} 30. Re3 {[%emt 0:02:17]} Qb5 {[%emt 0:02:16]} 31. Qc4 {[%emt 0:00:48]} Rd1+ {[%emt 0:02:37]} 32. Kg2 {[%emt 0:00:09]} Qxc4 {[%emt 0:02:29]} 33. Rxc4 {[%emt 0:00:04]} R1d2 {[%emt 0:00:26]} 34. Rc7 {[%emt 0:01:05]} Rxa2 {[%emt 0:02:21]} 35. Rf3 {[%emt 0:00:41]} f5 {[%emt 0:01:47]} 36. Re3 {[%emt 0:00:48]} Rdd2 {[%emt 0:00:55]} 37. Rxe6 {[%emt 0:00:17]} Rxf2+ {[%emt 0:00:16]} 38. Kg1 {[%emt 0:00:06]} Rfe2 {[%emt 0:00:26]} 39. Rxe2 {[%emt 0:00:47]} Rxe2 {[%emt 0:00:03]} 40. Rxb7 {[%emt 0:00:41]} a2 {[%emt 0:00:21]} 41. Ra7 {[%emt 0:30:26]} Re1+ {[%emt 0:30:33]} 42. Kf2 {[%emt 0:00:04]} a1=Q {[%emt 0:00:06]} 43. Rxa1 {[%emt 0:00:09]} Rxa1 {[%emt 0:00:04]} 44. Ke3 {[%emt 0:00:05]} Ra3 {[%emt 0:00:09]} 45. Kd4 {[%emt 0:00:45]} Rxb3 {[%emt 0:00:10]} 46. c4 {[%emt 0:00:02]} Kf7 {[%emt 0:00:19]} 47. Kd5 {[%emt 0:00:05]} Ke7 {[%emt 0:00:26]} 0-1

[Event "Krakow Championship-B 2022"]
[Site "Krakow"]
[Date "2022.06.28"]
[Round "5.4"]
[White "Hnatyshyn, Anastasiia"]
[Black "Malik, Maciej"]
[Result "1/2-1/2"]
[ECO "B07"]
[WhiteElo "1890"]
[BlackElo "1984"]
[Annotator "NA RC"]
[PlyCount "80"]
[EventDate "2022.06.25"]
[EventType "swiss"]
[EventCountry "POL"]
[SourceTitle "playchess.com"]
[Source "ChessBase"]
[SourceQuality "1"]
[TimeControl "40/5400+30:1800+30"]

1. e4 {[%emt 0:00:03]} g6 {[%emt 0:01:00]} 2. d4 {[%emt 0:00:06]} d6 {[%emt 0:00:05]} 3. Nc3 {[%emt 0:00:11]} Nf6 {[%emt 0:00:07]} 4. Be3 {[%emt 0:00:12]} c6 {[%emt 0:00:32]} 5. Qd2 {[%emt 0:00:23]} b5 {[%emt 0:00:55]} 6. f3 {[%emt 0:00:48]} a6 {[%emt 0:07:19]} 7. g4 {[%emt 0:03:39]} h5 {[%emt 0:00:47]} 8. g5 {[%emt 0:00:07]} Nfd7 {[%emt 0:00:04]} 9. f4 {[%emt 0:02:09]} Nb6 {[%emt 0:05:44]} 10. O-O-O {[%emt 0:04:43]} d5 {[%emt 0:06:53]} 11. f5 {[%emt 0:13:02]} b4 {[%emt 0:01:23]} 12. Nb1 {[%emt 0:00:49]} dxe4 {[%emt 0:00:15]} 13. fxg6 {[%emt 0:01:31]} fxg6 {[%emt 0:00:19]} 14. Qxb4 {[%emt 0:07:14]} Nd5 {[%emt 0:03:10]} 15. Qd2 {[%emt 0:00:35]} Bg4 {[%emt 0:00:54]} 16. Be2 {[%emt 0:04:40]} Bf5 {[%emt 0:01:44]} 17. c4 {[%emt 0:01:18]} Nxe3 {[%emt 0:05:07]} 18. Qxe3 {[%emt 0:00:06]} e5 {[%emt 0:00:37]} 19. Nc3 {[%emt 0:12:41]} Nd7 {[%emt 0:09:43]} 20. Nxe4 {[%emt 0:03:53]} Bxe4 {[%emt 0:09:33]} 21. Qxe4 {[%emt 0:00:04]} Qxg5+ {[%emt 0:00:08]} 22. Kb1 {[%emt 0:00:28]} Qf5 {[%emt 0:03:17]} 23. Bd3 {[%emt 0:01:17]} Qxe4 {[%emt 0:02:34]} 24. Bxe4 {[%emt 0:00:02]} O-O-O {[%emt 0:00:14]} 25. Nf3 {[%emt 0:09:15]} exd4 {[%emt 0:03:55]} 26. Nxd4 {[%emt 0:00:50]} Ne5 {[%emt 0:01:02]} 27. b3 {[%emt 0:08:07]} Kb7 {[%emt 0:04:58]} 28. h3 {[%emt 0:07:14]} Kb6 {[%emt 0:01:41]} 29. Kc2 {[%emt 0:00:48]} Be7 {[%emt 0:01:43]} 30. Ne6 {[%emt 0:04:25]} Rxd1 {[%emt 0:00:41]} 31. Kxd1 {[%emt 0:01:02]} g5 {[%emt 0:00:28]} 32. Ke2 {[%emt 0:00:37]} Rg8 {[%emt 0:04:43]} 33. Bh7 {[%emt 0:01:51]} Re8 {[%emt 0:00:42]} 34. Ng7 {[%emt 0:00:48]} Rf8 {[%emt 0:00:42]} 35. Rf1 {[%emt 0:02:33]} Rh8 {[%emt 0:01:21]} 36. Be4 {[%emt 0:00:15]} h4 {[%emt 0:04:44]} 37. Rf5 {[%emt 0:03:11]} Ng6 {[%emt 0:04:13]} 38. Ne6 {[%emt 0:00:08]} Nf4+ {[%emt 0:06:37]} 39. Nxf4 {[%emt 0:00:55]} gxf4 {[%emt 0:00:04]} 40. Rxf4 {[%emt 0:00:10]} Rh6 {[%emt 0:00:27]} 1/2-1/2

[Event "Krakow Championship-B 2022"]
[Site "Krakow"]
[Date "2022.06.28"]
[Round "5.5"]
[White "Zamekhovskiy, Yevgen"]
[Black "Cichon, Bartlomiej"]
[Result "1-0"]
[ECO "A49"]
[WhiteElo "1926"]
[BlackElo "1895"]
[Annotator "NA RC"]
[PlyCount "55"]
[EventDate "2022.06.25"]
[EventType "swiss"]
[EventCountry "POL"]
[SourceTitle "playchess.com"]
[Source "ChessBase"]
[SourceQuality "1"]
[TimeControl "40/5400+30:1800+30"]

1. d4 {[%emt 0:00:04]} Nf6 {[%emt 0:00:06]} 2. Nf3 {[%emt 0:00:12]} g6 {[%emt 0:00:09]} 3. g3 {[%emt 0:00:04]} Bg7 {[%emt 0:00:03]} 4. Bg2 {[%emt 0:00:11]} O-O {[%emt 0:00:05]} 5. O-O {[%emt 0:00:04]} d6 {[%emt 0:00:03]} 6. a4 {[%emt 0:00:03]} Nc6 {[%emt 0:00:16]} 7. a5 {[%emt 0:05:06]} e5 {[%emt 0:04:07]} 8. a6 {[%emt 0:11:14]} e4 {[%emt 0:21:48]} 9. Ng5 {[%emt 0:00:35]} Re8 {[%emt 0:07:24]} 10. d5 {[%emt 0:14:28]} Nb4 {[%emt 0:01:38]} 11. Nc3 {[%emt 0:07:11]} Nxa6 {[%emt 0:01:54]} 12. Ngxe4 {[%emt 0:01:03]} Nxe4 {[%emt 0:03:09]} 13. Nxe4 {[%emt 0:00:51]} Bf5 {[%emt 0:09:26]} 14. Nd2 {[%emt 0:08:59]} Nc5 {[%emt 0:02:04]} 15. h3 {[%emt 0:04:09]} h5 {[%emt 0:02:56]} 16. Re1 {[%emt 0:03:51]} Be4 {[%emt 0:06:16]} 17. Nxe4 {[%emt 0:10:13]} Nxe4 {[%emt 0:00:03]} 18. Ra4 {[%emt 0:00:57]} Nc5 {[%emt 0:00:59]} 19. Ra2 {[%emt 0:00:31]} h4 {[%emt 0:01:23]} 20. g4 {[%emt 0:02:04]} Kh7 {[%emt 0:05:56]} 21. e4 {[%emt 0:02:31]} Qf6 {[%emt 0:05:42]} 22. g5 {[%emt 0:04:39]} Qd4 {[%emt 0:03:13]} 23. Qg4 {[%emt 0:00:50]} Rh8 {[%emt 0:03:43]} 24. Qxh4+ {[%emt 0:01:53]} Kg8 {[%emt 0:00:06]} 25. Qg4 {[%emt 0:00:14]} a6 {[%emt 0:05:04]} 26. Rd1 {[%emt 0:02:35]} Qe5 {[%emt 0:02:50]} 27. b4 {[%emt 0:01:17]} Nd7 {[%emt 0:00:26]} 28. Qxd7 {[%emt 0:00:44]} 1-0

[Event "Krakow Championship-B 2022"]
[Site "Krakow"]
[Date "2022.06.28"]
[Round "5.6"]
[White "Kulesza, Andrzej"]
[Black "Cwiek, Ryszard"]
[Result "1-0"]
[ECO "C00"]
[WhiteElo "1998"]
[BlackElo "1880"]
[Annotator "NA RC"]
[PlyCount "201"]
[EventDate "2022.06.25"]
[EventType "swiss"]
[EventCountry "POL"]
[SourceTitle "playchess.com"]
[Source "ChessBase"]
[SourceQuality "1"]
[TimeControl "40/5400+30:1800+30"]

1. e4 {[%emt 0:01:13]} e6 {[%emt 0:00:18]} 2. d4 {[%emt 0:01:32]} b6 {[%emt 0:01:07]} 3. Nf3 {[%emt 0:04:01]} Bb7 {[%emt 0:00:51]} 4. Bd3 {[%emt 0:02:20]} Be7 {[%emt 0:07:23]} 5. O-O {[%emt 0:03:41]} d6 {[%emt 0:00:10]} 6. Re1 {[%emt 0:01:41]} Nf6 {[%emt 0:01:46]} 7. Nbd2 {[%emt 0:04:46]} O-O {[%emt 0:02:52]} 8. c3 {[%emt 0:03:48]} Nc6 {[%emt 0:05:10]} 9. Nf1 {[%emt 0:02:49]} e5 {[%emt 0:06:10]} 10. Ng3 {[%emt 0:04:37]} Ne8 {[%emt 0:10:57]} 11. b3 {[%emt 0:07:13]} Bf6 {[%emt 0:01:46]} 12. Bb2 {[%emt 0:00:17]} g6 {[%emt 0:02:28]} 13. Qd2 {[%emt 0:01:58]} h5 {[%emt 0:11:58]} 14. h3 {[%emt 0:03:21]} Ng7 {[%emt 0:02:51]} 15. Rad1 {[%emt 0:03:21]} h4 {[%emt 0:06:03]} 16. Nf1 {[%emt 0:04:00]} Nh5 {[%emt 0:04:52]} 17. Ne3 {[%emt 0:00:33]} Nf4 {[%emt 0:05:11]} 18. Nd5 {[%emt 0:00:21]} Nxd3 {[%emt 0:07:49]} 19. Nxf6+ {[%emt 0:01:33]} Qxf6 {[%emt 0:00:02]} 20. Qxd3 {[%emt 0:00:09]} Bc8 {[%emt 0:01:51]} 21. Bc1 {[%emt 0:03:39]} a5 {[%emt 0:08:38]} 22. Bg5 {[%emt 0:02:35]} Qh8 {[%emt 0:01:07]} 23. Qc4 {[%emt 0:02:37]} Bd7 {[%emt 0:05:45]} 24. d5 {[%emt 0:09:19]} b5 {[%emt 0:00:25]} 25. Qxb5 {[%emt 0:00:22]} Nb8 {[%emt 0:00:02]} 26. Qd3 {[%emt 0:00:10]} f5 {[%emt 0:01:31]} 27. Bc1 {[%emt 0:04:26]} f4 {[%emt 0:00:31]} 28. Ba3 {[%emt 0:00:55]} g5 {[%emt 0:03:30]} 29. Nh2 {[%emt 0:00:08]} Qg7 {[%emt 0:00:27]} 30. f3 {[%emt 0:00:39]} Na6 {[%emt 0:00:38]} 31. Rc1 {[%emt 0:00:57]} Rfb8 {[%emt 0:00:31]} 32. Nf1 {[%emt 0:00:40]} Qf8 {[%emt 0:00:44]} 33. Nd2 {[%emt 0:00:46]} Qc8 {[%emt 0:00:08]} 34. Qe2 {[%emt 0:00:53]} Qb7 {[%emt 0:01:03]} 35. Qf2 {[%emt 0:00:43]} Qb6 {[%emt 0:00:45]} 36. Nc4 {[%emt 0:00:55]} Qxf2+ {[%emt 0:00:04]} 37. Kxf2 {[%emt 0:00:05]} Rb5 {[%emt 0:00:50]} 38. Nb2 {[%emt 0:00:31]} Rb7 {[%emt 0:00:31]} 39. Nd3 {[%emt 0:01:53]} Kf7 {[%emt 0:00:22]} 40. Rc2 {[%emt 0:00:41]} Ke8 {[%emt 0:00:30]} 41. Rec1 {[%emt 0:30:43]} Kd8 {[%emt 0:04:12]} 42. Ke1 {[%emt 0:00:00]} Rbb8 {[%emt 0:03:13]} 43. Kd2 {[%emt 0:00:00]} Ra7 {[%emt 0:04:32]} 44. c4 {[%emt 0:00:00]} Nb4 {[%emt 0:00:27]} 45. Bxb4 {[%emt 0:00:00]} axb4 {[%emt 0:00:09]} 46. Ra1 {[%emt 0:00:00]} Bc8 {[%emt 0:03:19]} 47. Kc1 {[%emt 0:00:00]} c5 {[%emt 0:09:59]} 48. dxc6 {[%emt 0:00:00]} Kc7 {[%emt 0:00:03]} 49. Kb2 {[%emt 0:00:00]} Kxc6 {[%emt 0:01:01]} 50. a3 {[%emt 0:00:00]} bxa3+ {[%emt 0:00:32]} 51. Rxa3 {[%emt 0:00:00]} Rxa3 {[%emt 0:01:28]} 52. Kxa3 {[%emt 0:00:00]} Ra8+ {[%emt 0:00:06]} 53. Kb2 {[%emt 0:00:00]} Be6 {[%emt 0:00:21]} 54. Rc1 {[%emt 0:00:00]} Rb8 {[%emt 0:01:03]} 55. Kc3 {[%emt 0:00:00]} Ra8 {[%emt 0:00:05]} 56. Nb4+ {[%emt 0:00:00]} Kc5 {[%emt 0:00:10]} 57. Nc2 {[%emt 0:00:00]} Kb6 {[%emt 0:00:39]} 58. Ra1 {[%emt 0:00:00]} Rc8 {[%emt 0:02:47]} 59. Nb4 {[%emt 0:00:00]} Kb7 {[%emt 0:00:46]} 60. Ra6 {[%emt 0:00:00]} Rd8 {[%emt 0:00:47]} 61. Ra5 {[%emt 0:00:00]} Kb6 {[%emt 0:01:28]} 62. Rb5+ {[%emt 0:00:00]} Kc7 {[%emt 0:00:05]} 63. Nd5+ {[%emt 0:00:00]} Bxd5 {[%emt 0:00:09]} 64. Rxd5 {[%emt 0:00:00]} Ra8 {[%emt 0:00:38]} 65. Kb2 {[%emt 0:00:00]} Rb8 {[%emt 0:00:50]} 66. c5 {[%emt 0:00:00]} dxc5 {[%emt 0:00:27]} 67. Rxe5 {[%emt 0:00:00]} Kc6 {[%emt 0:00:23]} 68. Kc3 {[%emt 0:00:00]} Ra8 {[%emt 0:00:19]} 69. Rxg5 {[%emt 0:00:00]} Ra2 {[%emt 0:00:06]} 70. b4 {[%emt 0:00:00]} cxb4+ {[%emt 0:00:28]} 71. Kxb4 {[%emt 0:00:00]} Kd6 {[%emt 0:00:10]} 72. Kc4 {[%emt 0:00:00]} Rc2+ {[%emt 0:00:27]} 73. Kd3 {[%emt 0:00:00]} Ra2 {[%emt 0:00:18]} 74. Rg4 {[%emt 0:00:00]} Ke5 {[%emt 0:00:08]} 75. Rxh4 {[%emt 0:00:00]} Rxg2 {[%emt 0:00:06]} 76. Rh5+ {[%emt 0:00:00]} Ke6 {[%emt 0:00:22]} 77. Rf5 {[%emt 0:00:00]} Rg3 {[%emt 0:00:05]} 78. Rxf4 {[%emt 0:00:00]} Rxh3 {[%emt 0:00:05]} 79. Ke3 {[%emt 0:00:00]} Rh8 {[%emt 0:00:08]} 80. Rg4 {[%emt 0:00:00]} Kf6 {[%emt 0:00:27]} 81. Rg1 {[%emt 0:00:00]} Rb8 {[%emt 0:00:39]} 82. Ra1 {[%emt 0:00:00]} Rb3+ {[%emt 0:00:31]} 83. Kf4 {[%emt 0:00:00]} Rb6 {[%emt 0:00:03]} 84. Rh1 {[%emt 0:00:00]} Rb3 {[%emt 0:00:04]} 85. Rh6+ {[%emt 0:00:00]} Ke7 {[%emt 0:00:04]} 86. e5 {[%emt 0:00:00]} Ra3 {[%emt 0:00:08]} 87. Ke4 {[%emt 0:00:00]} Ra4+ {[%emt 0:00:04]} 88. Kf5 {[%emt 0:00:00]} Ra5 {[%emt 0:00:10]} 89. Rh7+ {[%emt 0:00:00]} Ke8 {[%emt 0:00:05]} 90. f4 {[%emt 0:00:00]} Ra4 {[%emt 0:00:05]} 91. e6 {[%emt 0:00:00]} Kd8 {[%emt 0:00:09]} 92. Ke5 {[%emt 0:00:00]} Ke8 {[%emt 0:00:09]} 93. f5 {[%emt 0:00:00]} Kf8 {[%emt 0:00:18]} 94. Kf6 {[%emt 0:00:00]} Kg8 {[%emt 0:00:12]} 95. Rg7+ {[%emt 0:00:00]} Kh8 {[%emt 0:00:04]} 96. Rd7 {[%emt 0:00:00]} Ra6 {[%emt 0:00:10]} 97. Kf7 {[%emt 0:00:00]} Ra5 {[%emt 0:00:10]} 98. f6 {[%emt 0:00:00]} Rg5 {[%emt 0:00:20]} 99. Rd1 {[%emt 0:00:00]} Rh5 {[%emt 0:00:17]} 100. Kg6 {[%emt 0:00:00]} Rh2 {[%emt 0:00:06]} 101. Rd8# {[%emt 0:00:00]} 1-0